bitfinex/quotes_BTCUSD_20250723
["timestamp","ask_amount","ask_price","bid_price","bid_amount"]
[1753297117978,0.21828146,118520.0,118510.0,0.73350116]
[1753297118221,0.22671842,118520.0,118510.0,0.73350116]
[1753297118645,0.21828146,118520.0,118510.0,0.73350116]
[1753297119622,0.22671842,118520.0,118510.0,0.73350116]
[1753297120511,0.23515552,118520.0,118510.0,0.73350116]
[1753297120754,0.41538059,118520.0,118510.0,0.71464574]
[1753297120966,0.66538411,118520.0,118510.0,0.001]
[1753297121174,0.66538411,118520.0,118510.0,0.40900559]
[1753297122037,0.66538411,118520.0,118510.0,0.40800559]
[1753297122258,0.66538411,118520.0,118510.0,0.57676771]
[1753297122544,0.66638411,118520.0,118510.0,0.40800559]
[1753297123294,0.02531316,118510.0,118500.0,0.20252971]
[1753297123523,0.10032302,118510.0,118500.0,0.20252971]
[1753297124206,0.10876091,118510.0,118500.0,0.20252971]
[1753297124450,0.10876091,118510.0,118500.0,0.56526893]
[1753297124873,0.08040732,118510.0,118500.0,0.56733893]
[1753297125089,0.22263876,118510.0,118500.0,0.57038893]
[1753297125308,0.23107665,118510.0,118500.0,0.57038893]
[1753297125527,0.23311672,118510.0,118500.0,0.56733893]
[1753297126228,0.40187884,118510.0,118500.0,0.55046237]
[1753297126468,0.27591884,118510.0,118500.0,0.55890083]
[1753297126684,0.27591884,118510.0,118500.0,0.69633922]
[1753297127327,0.28435687,118510.0,118500.0,0.70477754]
[1753297128460,0.11559475,118510.0,118500.0,0.70477754]
[1753297128674,0.28596135,118510.0,118500.0,0.70477754]
[1753297128899,0.28435751,118510.0,118500.0,0.70477754]
[1753297130876,0.11559539,118510.0,118500.0,0.70477754]
[1753297131063,0.50876113,118510.0,118500.0,0.70477754]
[1753297131309,0.49871926,118510.0,118500.0,0.70477754]
[1753297136291,0.4902813,118510.0,118500.0,0.70477754]
[1753297136509,0.48724122,118510.0,118500.0,0.70477754]
[1753297136717,0.47880355,118510.0,118500.0,0.70477754]
[1753297137017,0.46832602,118510.0,118500.0,0.70477754]
[1753297137244,0.21616153,118520.0,118510.0,0.19407557]
[1753297137463,0.00883689,118520.0,118510.0,0.69089479]
[1753297137686,0.40883689,118520.0,118510.0,0.70619479]
[1753297138147,0.41727385,118520.0,118510.0,0.70619479]
[1753297139302,0.40883689,118520.0,118510.0,0.70619479]
[1753297139788,0.40983689,118520.0,118510.0,0.70619479]
[1753297140008,0.40883689,118520.0,118510.0,0.70619479]
[1753297140243,0.41727385,118520.0,118510.0,0.70619479]
[1753297140716,0.0004,118520.0,118510.0,1.08543401]
[1753297141181,0.0004,118520.0,118510.0,0.72269479]
[1753297142056,0.0004,118520.0,118510.0,0.95647401]
[1753297142301,0.0004,118520.0,118510.0,1.08543401]
[1753297142742,0.0004,118520.0,118510.0,1.08643401]
[1753297142964,0.0004,118520.0,118510.0,0.72369479]
[1753297143407,0.0004,118520.0,118510.0,1.08643401]
[1753297145466,0.0004,118520.0,118510.0,1.17676591]
[1753297149032,0.0004,118520.0,118510.0,1.26124321]
[1753297156750,0.0004,118520.0,118510.0,1.13228321]
[1753297156980,0.00241,118520.0,118510.0,0.73393074]
[1753297157671,0.0004,118520.0,118510.0,0.32916557]
[1753297157918,0.0004,118520.0,118510.0,0.73707074]
[1753297160713,0.0004,118520.0,118510.0,1.17717591]
[1753297166335,0.0004,118520.0,118510.0,0.75327074]
[1753297166543,0.0004,118520.0,118510.0,0.73707074]
[1753297168611,0.0004,118520.0,118510.0,0.32916557]
[1753297168836,0.0004,118520.0,118510.0,0.73707074]
[1753297169041,0.0004,118520.0,118510.0,0.32602557]
[1753297169226,0.0004,118520.0,118510.0,0.73393074]
[1753297170427,0.0004,118520.0,118510.0,0.73707074]
[1753297170642,0.0004,118520.0,118510.0,0.75267074]
[1753297170829,0.0004,118520.0,118510.0,0.97312674]
[1753297171249,0.0004,118520.0,118510.0,1.38103191]
[1753297171944,0.0004,118520.0,118510.0,1.39683191]
[1753297174289,8.206e-05,118520.0,118510.0,1.3966346]
[1753297181469,8.206e-05,118520.0,118510.0,1.3808346]
[1753297184025,8.206e-05,118520.0,118510.0,1.3652346]
[1753297186662,8.206e-05,118520.0,118510.0,1.3810346]
[1753297189545,8.206e-05,118520.0,118510.0,1.40680569]
[1753297191549,8.206e-05,118520.0,118510.0,1.42190569]
[1753297193521,8.206e-05,118520.0,118510.0,1.50638299]
[1753297194660,8.206e-05,118520.0,118510.0,1.50630299]
[1753297196182,8.206e-05,118520.0,118510.0,1.37750299]
[1753297196406,8.206e-05,118520.0,118510.0,1.50630299]
[1753297204285,8.206e-05,118520.0,118510.0,1.86375201]
[1753297204732,0.00846,118530.0,118520.0,0.2255592]
[1753297204951,0.00846,118530.0,118520.0,1.68193103]
[1753297205156,0.00846,118530.0,118520.0,1.27696586]
[1753297206053,0.00846,118530.0,118520.0,1.27896586]
[1753297206730,0.00846,118530.0,118520.0,1.27996586]
[1753297207398,0.00850908,118530.0,118520.0,1.27996586]
[1753297209336,0.00850908,118530.0,118520.0,1.68787103]
[1753297209884,0.00850908,118530.0,118520.0,1.27996586]
[1753297212243,0.00850908,118530.0,118520.0,0.46415552]
[1753297212451,0.00850908,118530.0,118520.0,1.27996586]
[1753297214617,0.00850908,118530.0,118520.0,1.68787103]
[1753297215367,0.00850908,118530.0,118520.0,1.27996586]
[1753297216449,0.00850908,118530.0,118520.0,1.68787103]
[1753297216662,0.00850908,118530.0,118520.0,1.27996586]
[1753297229243,1e-08,118530.0,118520.0,2.02787103]
[1753297231362,1e-08,118530.0,118520.0,2.02687103]
[1753297231782,1e-08,118530.0,118520.0,2.02987103]
[1753297234209,1e-08,118530.0,118520.0,2.03853832]
[1753297235035,1e-08,118530.0,118520.0,2.02987103]
[1753297237313,1e-08,118530.0,118520.0,2.03817417]
[1753297239085,1e-08,118530.0,118520.0,2.02987103]
[1753297239517,1e-08,118530.0,118520.0,2.01367103]
[1753297240976,1e-08,118530.0,118520.0,2.02967103]
[1753297244186,1e-08,118530.0,118520.0,2.02767103]
[1753297244627,1e-08,118530.0,118520.0,2.02467103]
[1753297247184,1e-08,118530.0,118520.0,2.00867103]
[1753297247409,1e-08,118530.0,118520.0,1.99337103]
[1753297248698,1e-08,118530.0,118520.0,2.00887103]
[1753297249565,1e-08,118530.0,118520.0,2.02417103]
[1753297253611,1e-08,118530.0,118520.0,2.00887103]
[1753297253832,1e-08,118530.0,118520.0,1.99337103]
[1753297256246,0.13455,118550.0,118540.0,1.00983679]
[1753297256460,0.13325,118550.0,118540.0,1.13843679]
[1753297257100,0.1365,118550.0,118540.0,1.13843679]
[1753297257507,0.1365,118550.0,118540.0,1.13943679]
[1753297257841,0.1365,118550.0,118540.0,1.14043679]
[1753297261835,0.1365,118550.0,118540.0,1.22491409]
[1753297265581,0.1365,118550.0,118540.0,0.40910375]
[1753297265806,0.1365,118550.0,118540.0,1.22491409]
[1753297275187,0.14514822,118550.0,118540.0,1.22491409]
[1753297284276,0.14514822,118550.0,118540.0,1.22701409]
[1753297286091,0.11099822,118550.0,118540.0,1.22701409]
[1753297289386,0.11099822,118550.0,118540.0,1.09841409]
[1753297289624,0.14553822,118550.0,118540.0,1.22483409]
[1753297291288,0.14553822,118550.0,118540.0,1.09631409]
[1753297291495,0.14553822,118550.0,118540.0,1.22483409]
[1753297293692,0.16009204,118550.0,118540.0,0.19602645]
[1753297293908,0.16009204,118550.0,118540.0,0.73245162]
[1753297294778,0.14553822,118550.0,118540.0,0.73245162]
[1753297296493,0.34958698,118550.0,118540.0,0.73245169]
[1753297296720,0.17927789,118550.0,118540.0,0.74088716]
[1753297297173,0.17084278,118550.0,118540.0,0.74088716]
[1753297297402,0.17084285,118550.0,118540.0,0.74088716]
[1753297297628,0.16240781,118550.0,118540.0,0.74088716]
[1753297297839,0.25692392,118550.0,118540.0,0.74088716]
[1753297298067,0.24688511,118550.0,118540.0,0.74088716]
[1753297298552,0.25531994,118550.0,118540.0,0.74088716]
[1753297298734,0.24688497,118550.0,118540.0,0.74088716]
[1753297298951,0.2553198,118550.0,118540.0,0.74088716]
[1753297299267,0.24688504,118550.0,118540.0,0.74088716]
[1753297299584,0.24688497,118550.0,118540.0,0.74088716]
[1753297300594,0.25531987,118550.0,118540.0,0.74088716]
[1753297301047,0.24688497,118550.0,118540.0,0.74088716]
[1753297301483,0.25531987,118550.0,118540.0,0.74088716]
[1753297301659,0.25531987,118550.0,118540.0,0.33298199]
[1753297301660,0.24688497,118550.0,118540.0,0.33298199]
[1753297301867,0.24688497,118550.0,118540.0,0.74088716]
[1753297303118,0.34823228,118550.0,118540.0,0.70714458]
[1753297303340,0.35666746,118550.0,118540.0,0.72401601]
[1753297303531,0.34823277,118550.0,118540.0,0.31611084]
[1753297303742,0.91693795,118550.0,118540.0,0.31611084]
[1753297303948,0.74823277,118550.0,118540.0,0.73145155]
[1753297304349,0.91693795,118550.0,118540.0,0.73145155]
[1753297304555,0.91693795,118550.0,118540.0,0.72301601]
[1753297304893,0.90850319,118550.0,118540.0,0.72201601]
[1753297305851,0.90850319,118550.0,118540.0,0.70514458]
[1753297306061,0.04817115,118540.0,118530.0,0.31411335]
[1753297306260,0.14268804,118540.0,118530.0,0.73045513]
[1753297306470,0.27652804,118540.0,118530.0,1.1383603]
[1753297306677,0.2749242,118540.0,118530.0,1.1383603]
[1753297306889,0.28336002,118540.0,118530.0,1.1383603]
[1753297307084,0.2833596,118540.0,118530.0,1.1383603]
[1753297307293,0.6833596,118540.0,118530.0,1.1383603]
[1753297308155,0.69179542,118540.0,118530.0,1.1383603]
[1753297308374,0.67492385,118540.0,118530.0,1.1383603]
[1753297308572,0.54644385,118540.0,118530.0,1.1383603]
[1753297308926,0.55487953,118540.0,118530.0,1.1383603]
[1753297309432,0.56331535,118540.0,118530.0,1.1383603]
[1753297309669,0.55487953,118540.0,118530.0,1.1383603]
[1753297311153,0.55487953,118540.0,118530.0,0.73045513]
[1753297311349,0.43666,118540.0,118530.0,1.0098403]
[1753297311563,0.44509533,118540.0,118530.0,1.1383203]
[1753297312038,0.4535308,118540.0,118530.0,0.32250996]
[1753297312280,0.4535308,118540.0,118530.0,1.1383203]
[1753297312976,0.46196634,118540.0,118530.0,1.1383203]
[1753297313194,0.50135901,118540.0,118530.0,1.1383203]
[1753297313488,0.51823044,118540.0,118530.0,1.1383203]
[1753297313703,0.50979462,118540.0,118530.0,1.1383203]
[1753297313926,0.51823037,118540.0,118530.0,1.11301112]
[1753297314147,0.51823037,118540.0,118520.0,0.17718471]
[1753297314148,0.00843625,118530.0,118520.0,0.18562217]
[1753297314371,0.04730009,118530.0,118520.0,0.73888119]
[1753297314589,0.24248512,118530.0,118520.0,0.73888119]
[1753297314814,0.43726,118530.0,118520.0,1.14678636]
[1753297315246,0.44569611,118530.0,118520.0,1.14678636]
[1753297315452,0.44569611,118530.0,118520.0,0.73888119]
[1753297315905,0.5217373,118530.0,118510.0,0.220456]
[1753297316143,0.46495041,118520.0,118510.0,0.75689025]
[1753297316387,0.54997387,118520.0,118510.0,0.75689025]
[1753297316596,0.54153691,118520.0,118510.0,0.75689025]
[1753297316800,0.53309981,118520.0,118510.0,0.75689025]
[1753297317465,0.66157981,118520.0,118510.0,0.75689025]
[1753297318425,0.66157981,118520.0,118510.0,0.22050508]
[1753297318656,0.66157981,118520.0,118510.0,0.62841025]
[1753297319290,0.66157981,118520.0,118510.0,0.22050508]
[1753297320417,0.57710251,118520.0,118510.0,0.88901064]
[1753297320631,0.58553961,118520.0,118510.0,0.89744853]
[1753297320882,0.5939765,118520.0,118510.0,0.90588635]
[1753297321601,0.57710251,118520.0,118510.0,0.88901064]
[1753297321814,0.57710251,118520.0,118510.0,0.89744846]
[1753297322066,0.57710251,118520.0,118510.0,0.52622523]
[1753297322310,0.65314249,118520.0,118510.0,0.88901064]
[1753297322537,0.65314249,118520.0,118510.0,0.34902508]
[1753297322751,0.65314249,118520.0,118510.0,0.71181049]
[1753297323424,0.65314249,118520.0,118510.0,0.88057261]
[1753297323678,0.58553976,118520.0,118510.0,0.8974486]
[1753297324390,0.41679187,118520.0,118510.0,0.90588627]
[1753297324609,0.47393311,118520.0,118510.0,0.90588627]
[1753297324827,0.59401679,118520.0,118510.0,0.8974486]
[1753297325019,0.58557976,118520.0,118510.0,0.8974486]
[1753297325444,0.66161981,118520.0,118510.0,0.71181049]
[1753297325657,0.53309981,118520.0,118510.0,0.88901071]
[1753297325804,0.65318249,118520.0,118510.0,0.88901071]
[1753297326012,0.50318249,118520.0,118510.0,0.71181049]
[1753297327434,0.50318249,118520.0,118510.0,0.88057261]
[1753297327658,0.50318249,118520.0,118510.0,0.58329049]
[1753297327865,0.50318249,118520.0,118510.0,0.71181049]
[1753297328082,0.50318249,118520.0,118510.0,0.34902508]
[1753297328525,0.50318249,118520.0,118510.0,0.22050508]
[1753297329624,0.50318249,118520.0,118510.0,0.58329049]
[1753297330489,0.50318249,118520.0,118510.0,0.22050508]
[1753297334067,0.50318249,118520.0,118510.0,0.58329049]
[1753297335028,0.50318249,118520.0,118510.0,0.22050508]
[1753297335233,0.84318249,118520.0,118510.0,0.22050508]
[1753297337237,0.75870519,118520.0,118510.0,0.22050508]
[1753297340753,0.75870519,118520.0,118510.0,0.58329049]
[1753297341376,0.75870519,118520.0,118510.0,0.76049071]
[1753297341876,0.75870519,118520.0,118510.0,0.91647402]
[1753297341877,0.0866273,118520.0,118510.0,0.91647402]
[1753297342103,0.08608114,118520.0,118510.0,0.95189402]
[1753297342546,0.1668725,118530.0,118520.0,0.1940592]
[1753297342763,0.25295364,118530.0,118520.0,0.55899461]
[1753297342979,0.2344773,118530.0,118520.0,0.92178002]
[1753297343260,0.0844773,118530.0,118520.0,0.95720002]
[1753297343483,0.00160384,118530.0,118520.0,0.95720002]
[1753297343708,0.15,118540.0,118530.0,0.19404283]
[1753297343934,0.0844773,118540.0,118530.0,0.72291824]
[1753297344163,0.10869588,118550.0,118540.0,0.19402645]
[1753297344392,0.11029972,118550.0,118540.0,0.57546186]
[1753297344612,0.10869588,118550.0,118540.0,0.59508186]
[1753297350081,0.17456547,118550.0,118540.0,0.59508186]
[1753297351695,0.17456547,118550.0,118540.0,0.57848186]
[1753297354556,0.17456547,118550.0,118540.0,0.56198186]
[1753297356495,0.10869588,118550.0,118540.0,0.56198186]
[1753297356704,0.10869588,118550.0,118540.0,0.70676186]
[1753297356915,0.11029972,118550.0,118540.0,0.70676186]
[1753297357505,0.11228972,118550.0,118540.0,0.68744186]
[1753297359158,0.11029972,118550.0,118540.0,0.68744186]
[1753297359289,0.11029972,118550.0,118540.0,0.69058186]
[1753297359290,0.10869588,118550.0,118540.0,0.69058186]
[1753297359510,0.10869588,118550.0,118540.0,0.70688186]
[1753297360105,0.10869588,118550.0,118540.0,0.72308186]
[1753297361055,0.10869588,118550.0,118540.0,1.08586727]
[1753297361615,0.10869588,118550.0,118540.0,0.72308186]
[1753297363492,0.10869588,118550.0,118540.0,1.08586727]
[1753297363692,0.10869588,118550.0,118540.0,0.72308186]
[1753297364190,0.10869588,118550.0,118540.0,1.08586727]
[1753297381248,0.10869588,118550.0,118540.0,0.36029645]
[1753297381458,0.10869588,118550.0,118540.0,1.08586727]
[1753297381913,0.11956547,118550.0,118540.0,0.72308186]
[1753297382355,0.11126959,118550.0,118540.0,0.70688186]
[1753297384087,0.1004,118550.0,118540.0,0.72258186]
[1753297387443,0.1004,118550.0,118540.0,1.08536727]
[1753297390489,0.1004,118550.0,118540.0,1.08636727]
[1753297391598,0.1004,118550.0,118540.0,1.08736727]
[1753297392266,0.0992,118550.0,118540.0,1.08736727]
[1753297395792,0.0992,118550.0,118540.0,1.07166727]
[1753297396006,0.0992,118550.0,118540.0,1.05536727]
[1753297396399,0.0992,118550.0,118540.0,0.69258186]
[1753297397232,0.11280517,118550.0,118540.0,0.68944186]
[1753297397433,0.13606,118550.0,118540.0,0.68729186]
[1753297398213,0.13606,118550.0,118540.0,0.68932186]
[1753297400875,0.10446,118550.0,118540.0,0.68932186]
[1753297403310,0.15282959,118550.0,118540.0,0.67877639]
[1753297403531,0.17839411,118550.0,118540.0,0.68721186]
[1753297403767,0.18682894,118550.0,118540.0,0.68721186]
[1753297404010,0.20369895,118550.0,118540.0,0.68721186]
[1753297404232,0.20369895,118550.0,118540.0,0.68621186]
[1753297404440,0.19526384,118550.0,118540.0,0.32342645]
[1753297404662,0.20369888,118550.0,118540.0,0.68621186]
[1753297404875,0.38083924,118550.0,118540.0,0.53250482]
[1753297405081,0.19526419,118550.0,118540.0,0.68621172]
[1753297405539,0.2036993,118550.0,118540.0,0.68621172]
[1753297405785,0.2036993,118550.0,118540.0,0.68521172]
[1753297406014,0.19526419,118550.0,118540.0,0.68521172]
[1753297406276,0.18682915,118550.0,118540.0,0.68521172]
[1753297407500,0.58682915,118550.0,118540.0,0.68521172]
[1753297408144,0.55282944,118550.0,118540.0,0.68521172]
[1753297408360,0.56126441,118550.0,118540.0,0.68521172]
[1753297408584,0.55282944,118550.0,118540.0,0.68521172]
[1753297409019,0.54439461,118550.0,118540.0,0.68521172]
[1753297409235,0.55282937,118550.0,118540.0,0.68521172]
[1753297409639,0.56126427,118550.0,118540.0,0.68521172]
[1753297410073,0.55282937,118550.0,118540.0,0.68521172]
[1753297410294,0.56126427,118550.0,118540.0,0.68521172]
[1753297410512,0.64574157,118550.0,118540.0,0.68521172]
[1753297411011,0.65417661,118550.0,118540.0,0.68521172]
[1753297411227,0.66261172,118550.0,118540.0,0.68521172]
[1753297412876,0.65417661,118550.0,118540.0,0.68521172]
[1753297413135,0.65417654,118550.0,118540.0,0.68521172]
[1753297413340,0.66261208,118550.0,118540.0,0.68521172]
[1753297413671,0.65417697,118550.0,118540.0,0.68521172]
[1753297413878,0.64574193,118550.0,118540.0,0.68521172]
[1753297414055,0.65417704,118550.0,118540.0,0.68521172]
[1753297414413,0.65417697,118550.0,118540.0,0.68521172]
[1753297414612,0.63730696,118550.0,118540.0,0.68521172]
[1753297415266,0.63730696,118550.0,118540.0,0.73022405]
[1753297415683,0.645742,118550.0,118540.0,0.73022405]
[1753297415981,0.63730696,118550.0,118540.0,0.73022405]
[1753297416773,0.62887206,118550.0,118540.0,0.73022405]
[1753297417126,0.63730696,118550.0,118540.0,0.73022405]
[1753297418575,0.645742,118550.0,118540.0,0.73022405]
[1753297418779,0.63730696,118550.0,118540.0,0.73022405]
[1753297418976,0.645742,118550.0,118540.0,0.73022405]
[1753297419412,0.65417711,118550.0,118540.0,0.73022405]
[1753297419979,0.83131747,118550.0,118540.0,0.73022412]
[1753297420135,0.43131747,118550.0,118540.0,0.72178858]
[1753297420336,0.25417711,118550.0,118540.0,0.73865959]
[1753297421292,0.65417711,118550.0,118540.0,0.73865959]
[1753297423380,0.63730696,118550.0,118540.0,0.73865959]
[1753297424031,0.64574193,118550.0,118540.0,0.73865959]
[1753297424724,0.65417704,118550.0,118540.0,0.73865959]
[1753297425151,0.26261222,118550.0,118540.0,0.73865959]
[1753297425361,0.4313174,118550.0,118540.0,0.73865959]
[1753297425571,0.66261222,118550.0,118540.0,0.73865959]
[1753297425804,0.83131789,118550.0,118540.0,0.73865959]
[1753297426830,0.65417746,118550.0,118540.0,0.73865959]
[1753297427070,0.64574228,118550.0,118540.0,0.73865959]
[1753297427274,0.65417746,118550.0,118540.0,0.73865959]
[1753297427495,0.25417746,118550.0,118540.0,0.73865959]
[1753297427881,0.65417746,118550.0,118540.0,0.73865959]
[1753297428086,0.56970016,118550.0,118540.0,0.73865959]
[1753297428290,0.56126498,118550.0,118540.0,0.73865959]
[1753297428519,0.55282987,118550.0,118540.0,0.73865959]
[1753297428730,0.56126498,118550.0,118540.0,0.73865959]
[1753297430642,0.55282987,118550.0,118540.0,0.73865959]
[1753297431103,0.56126491,118550.0,118540.0,0.73865959]
[1753297431437,0.56970002,118550.0,118540.0,0.73865959]
[1753297431878,0.56126491,118550.0,118540.0,0.73865959]
[1753297433268,0.61860986,118550.0,118540.0,0.73865959]
[1753297433488,0.63548015,118550.0,118540.0,0.73865959]
[1753297433692,0.80418533,118550.0,118540.0,0.73865959]
[1753297433898,0.63548015,118550.0,118540.0,0.73865959]
[1753297434117,0.50446,118550.0,118540.0,1.01805733]
[1753297434337,0.11606944,118550.0,118540.0,1.18192733]
[1753297434554,0.10763461,118550.0,118540.0,1.18192733]
[1753297434774,0.0992,118550.0,118540.0,1.18192733]
[1753297435205,0.10923853,118550.0,118540.0,1.18192733]
[1753297435408,0.10923853,118550.0,118540.0,0.77412959]
[1753297435409,0.10080384,118550.0,118540.0,0.77412959]
[1753297435557,0.10923853,118550.0,118540.0,0.77412959]
[1753297436210,0.12610833,118550.0,118540.0,0.33593185]
[1753297436454,0.15727504,118550.0,118540.0,0.74372959]
[1753297436674,0.16571015,118550.0,118540.0,0.74372959]
[1753297436866,0.15727504,118550.0,118540.0,0.74372959]
[1753297437711,0.16571015,118550.0,118540.0,0.74372959]
[1753297438205,0.15727504,118550.0,118540.0,0.74372959]
[1753297438429,0.29419008,118550.0,118540.0,0.74372959]
[1753297438674,0.29258624,118550.0,118540.0,0.74372959]
[1753297438904,0.30102135,118550.0,118540.0,0.74372959]
[1753297439416,0.17254135,118550.0,118540.0,0.74372959]
[1753297439638,0.16410624,118550.0,118540.0,0.74372959]
[1753297439867,0.29427008,118550.0,118540.0,0.74372959]
[1753297440104,0.29266624,118550.0,118540.0,0.74372959]
[1753297440309,0.25306449,118550.0,118540.0,0.74372959]
[1753297441063,0.2614996,118550.0,118540.0,0.74372959]
[1753297441471,0.2614996,118550.0,118540.0,0.74063959]
[1753297441894,0.25503449,118550.0,118540.0,0.74063959]
[1753297442103,0.2634696,118550.0,118540.0,0.74063959]
[1753297442912,0.25495449,118550.0,118540.0,0.74063959]
[1753297443297,0.26338953,118550.0,118540.0,0.74063959]
[1753297443725,0.47713719,118550.0,118540.0,0.72376865]
[1753297443934,0.48028719,118550.0,118540.0,0.73220426]
[1753297444580,0.48028719,118550.0,118540.0,0.74063973]
[1753297444785,0.48872279,118550.0,118540.0,0.74063973]
[1753297444971,0.48028782,118550.0,118540.0,0.73220426]
[1753297445544,0.47185278,118550.0,118540.0,0.73220426]
[1753297445758,0.3031476,118550.0,118540.0,0.74063973]
[1753297445961,0.25495554,118550.0,118540.0,0.74063973]
[1753297446155,0.42366072,118550.0,118540.0,0.74063973]
[1753297446381,0.42366072,118550.0,118540.0,0.73220426]
[1753297446589,0.18559084,118540.0,118530.0,0.59340424]
[1753297446795,0.17717019,118530.0,118520.0,0.18027521]
[1753297447024,0.22747683,118530.0,118520.0,0.72197991]
[1753297447196,0.18730267,118530.0,118520.0,0.74729137]
[1753297447406,0.14739229,118530.0,118520.0,1.15717911]
[1753297447608,0.14899613,118530.0,118520.0,1.15717911]
[1753297447881,0.14703613,118530.0,118520.0,1.15717911]
[1753297448024,0.14703613,118530.0,118520.0,1.16026911]
[1753297448438,0.13859988,118530.0,118520.0,1.16126911]
[1753297448715,0.14703606,118530.0,118520.0,1.16126911]
[1753297448922,0.15547238,118530.0,118520.0,1.16126911]
[1753297449639,0.15547238,118530.0,118520.0,1.16226911]
[1753297449845,0.14703606,118530.0,118520.0,1.16226911]
[1753297450053,0.15547231,118530.0,118520.0,1.16226911]
[1753297451490,0.14703606,118530.0,118520.0,1.16226911]
[1753297451739,0.00160384,118530.0,118520.0,1.16226911]
[1753297451944,0.61105683,118540.0,118530.0,0.19404283]
[1753297452121,0.64022406,118540.0,118530.0,1.01172831]
[1753297452343,0.64022406,118540.0,118530.0,1.14020831]
[1753297452559,0.84279396,118540.0,118530.0,1.12124581]
[1753297452777,0.84279396,118540.0,118530.0,1.12968242]
[1753297453003,0.84279396,118540.0,118530.0,1.00120242]
[1753297454280,0.91883565,118540.0,118530.0,1.00120242]
[1753297456360,0.83435835,118540.0,118530.0,1.00963896]
[1753297456570,0.64337392,118540.0,118530.0,1.02860153]
[1753297456700,0.64022392,118540.0,118530.0,1.02860153]
[1753297457083,0.64865974,118540.0,118530.0,1.02860153]
[1753297457296,0.81737915,118540.0,118530.0,1.02016535]
[1753297457524,0.80050828,118540.0,118530.0,1.00329242]
[1753297457742,0.82662253,118540.0,118530.0,0.99485581]
[1753297457943,0.82662253,118540.0,118530.0,0.99276581]
[1753297458158,0.82658253,118540.0,118530.0,1.00120242]
[1753297458369,0.84345411,118540.0,118530.0,1.01807528]
[1753297458824,0.84345411,118540.0,118530.0,1.00963896]
[1753297459050,0.84345411,118540.0,118530.0,1.01807542]
[1753297459473,0.8350185,118540.0,118530.0,1.01807542]
[1753297459710,0.7140312,118540.0,118530.0,1.03169174]
[1753297460149,0.7159912,118540.0,118530.0,1.02860174]
[1753297460581,0.7191412,118540.0,118530.0,1.00329242]
[1753297460796,0.7499412,118540.0,118530.0,1.00120242]
[1753297461027,0.82598268,118540.0,118530.0,0.81559548]
[1753297461451,0.83441843,118540.0,118530.0,1.00963852]
[1753297461673,0.66569902,118540.0,118530.0,1.0180747]
[1753297461883,0.83441843,118540.0,118530.0,1.0180747]
[1753297462084,0.74898113,118540.0,118530.0,1.00120227]
[1753297462290,0.74898113,118540.0,118530.0,1.00963866]
[1753297462503,0.74898113,118540.0,118530.0,1.00120242]
[1753297462721,0.74898113,118540.0,118530.0,1.00963896]
[1753297465337,0.74898113,118540.0,118530.0,1.01807535]
[1753297466163,0.74898113,118540.0,118530.0,1.00963896]
[1753297466811,0.73210941,118540.0,118530.0,0.99276581]
[1753297467316,0.73210941,118540.0,118530.0,1.00120242]
[1753297468363,0.81658671,118540.0,118530.0,1.00120242]
[1753297468597,0.81658671,118540.0,118530.0,0.98432913]
[1753297469063,0.81658671,118540.0,118530.0,0.99276581]
[1753297470598,0.8250226,118540.0,118530.0,1.00963867]
[1753297470827,0.84189425,118540.0,118530.0,1.01807492]
[1753297471279,0.84189425,118540.0,118530.0,1.00120235]
[1753297471466,0.84189425,118540.0,118530.0,1.0180752]
[1753297471635,0.84189425,118540.0,118530.0,0.20247972]
[1753297471860,0.84189425,118540.0,118530.0,1.0180752]
[1753297472051,0.75741695,118540.0,118530.0,1.0180752]
[1753297473437,0.75741695,118540.0,118530.0,0.20247972]
[1753297473647,0.96654671,118540.0,118520.0,0.1856216]
[1753297473864,0.35885674,118530.0,118520.0,0.18562217]
[1753297474080,0.35885674,118530.0,118510.0,0.41458008]
[1753297474081,0.00843689,118520.0,118510.0,0.41458008]
[1753297474305,0.14209682,118520.0,118510.0,0.41458008]
[1753297474510,0.14209675,118520.0,118510.0,0.41656008]
[1753297474712,0.13045,118520.0,118510.0,0.41656008]
[1753297474957,0.13887482,118520.0,118510.0,0.41656008]
[1753297475172,0.14047866,118520.0,118510.0,0.82435782]
[1753297475591,0.17383121,118520.0,118510.0,0.82435782]
[1753297475796,0.13887482,118520.0,118510.0,0.82435782]
[1753297476012,0.14047866,118520.0,118510.0,0.82535782]
[1753297476434,0.14047866,118520.0,118510.0,0.82635782]
[1753297477879,0.14891541,118520.0,118510.0,0.82635782]
[1753297478110,0.14047866,118520.0,118510.0,0.82635782]
[1753297478745,0.19507606,118520.0,118510.0,0.82535782]
[1753297478962,0.19347222,118520.0,118510.0,0.82535782]
[1753297479501,0.13887482,118520.0,118510.0,0.82535782]
[1753297479712,0.14047866,118520.0,118510.0,0.82435782]
[1753297481158,0.14368866,118520.0,118510.0,0.82435782]
[1753297486645,0.14047866,118520.0,118510.0,0.82435782]
[1753297489966,0.01207866,118520.0,118510.0,0.82435782]
[1753297490192,0.13846866,118520.0,118510.0,0.82734782]
[1753297490894,0.01002866,118520.0,118510.0,0.82734782]
[1753297491139,0.13846866,118520.0,118510.0,0.82734782]
[1753297491371,0.01002866,118520.0,118510.0,0.95582782]
[1753297491603,0.13850866,118520.0,118510.0,0.95582782]
[1753297492800,0.22298596,118520.0,118510.0,0.95582782]
[1753297493006,0.22138212,118520.0,118510.0,0.95582782]
[1753297493629,0.22138212,118520.0,118510.0,0.54803008]
[1753297493835,0.09290212,118520.0,118510.0,0.95582782]
[1753297494048,0.22298596,118520.0,118510.0,0.95582782]
[1753297494259,0.09290212,118520.0,118510.0,0.95582782]
[1753297494446,0.22298596,118520.0,118510.0,0.95582782]
[1753297494669,0.22138212,118520.0,118510.0,0.95582782]
[1753297494883,0.22138212,118520.0,118510.0,0.95283782]
[1753297495685,0.13690482,118520.0,118510.0,0.95283782]
[1753297495897,0.13850866,118520.0,118510.0,0.95283782]
[1753297496069,0.13850866,118520.0,118510.0,0.95582782]
[1753297496515,0.13850866,118520.0,118510.0,0.54803008]
[1753297496741,0.13850866,118520.0,118510.0,0.95582782]
[1753297496960,0.21788367,118520.0,118510.0,0.95582782]
[1753297497187,0.21627983,118520.0,118510.0,0.95582782]
[1753297498430,0.22672665,118520.0,118510.0,0.82435782]
[1753297498642,0.26987368,118520.0,118510.0,0.55153875]
[1753297498856,0.27831086,118520.0,118510.0,0.95933649]
[1753297499077,0.66143665,118520.0,118510.0,0.55153875]
[1753297499297,0.67831071,118520.0,118510.0,0.95933649]
[1753297499774,0.86393317,118520.0,118510.0,0.95933649]
[1753297499981,0.94841047,118520.0,118510.0,0.94246107]
[1753297500188,0.93997365,118520.0,118510.0,0.82237896]
[1753297500394,1.06466241,118520.0,118510.0,0.62830282]
[1753297501799,1.06466241,118520.0,118510.0,0.81394079]
[1753297502010,1.07309959,118520.0,118510.0,0.81394079]
[1753297502222,0.59372458,118520.0,118510.0,0.81394079]
[1753297502661,0.9852874,118520.0,118510.0,0.80550297]
[1753297502881,0.97685001,118520.0,118510.0,0.80550297]
[1753297503062,0.97685001,118520.0,118510.0,0.62830282]
[1753297503323,0.97685001,118520.0,118510.0,0.79706494]